[Event "Titled Tuesday Blitz June 6 Late 2023"]
[White "Senft, Sean"]
[Black "Liu, Casper"]
[WhiteFideId "2044960"]
[BlackFideId "1454153"]
[WhiteElo "1989"]
[BlackElo "2221"]
[Result "0-1"]
[Round "6"]
[TimeControl "180+2"]
[Date "2023.06.07"]
[WhiteClock "0:01:21"]
[BlackClock "0:01:20"]
[Board "88"]

1. d4 {[%clk 0:03:00]}  Nf6 {[%clk 0:02:53]} 2. c4 {[%clk 0:02:56]}  g6 {[%clk 0:02:52]} 3. Nc3 {[%clk 0:02:57]}  d5 {[%clk 0:02:47]} 4. Bg5 {[%clk 0:02:54]}  Ne4 {[%clk 0:02:47]} 5. Bh4 {[%clk 0:02:50]}  Nxc3 {[%clk 0:02:42]} 6. bxc3 {[%clk 0:02:51]}  Bg7 {[%clk 0:02:42]} 7. e3 {[%clk 0:02:51]}  c5 {[%clk 0:02:38]} 8. Nf3 {[%clk 0:02:49]}  cxd4 {[%clk 0:02:36]} 9. cxd4 {[%clk 0:02:48]}  dxc4 {[%clk 0:02:36]} 10. Bxc4 {[%clk 0:02:48]}  O-O {[%clk 0:02:36]} 11. O-O {[%clk 0:02:48]}  Nc6 {[%clk 0:02:36]} 12. Rb1 {[%clk 0:02:47]}  Bf5 {[%clk 0:02:34]} 13. Rxb7 {[%clk 0:02:31]}  Na5 {[%clk 0:02:21]} 14. Bxe7 {[%clk 0:02:10]}  Qc8 {[%clk 0:02:21]} 15. Bxf8 {[%clk 0:02:09]}  Bxf8 {[%clk 0:02:21]} 16. Bxf7+ {[%clk 0:01:43]}  Kh8 {[%clk 0:02:14]} 17. Rb5 {[%clk 0:01:26]}  Nc6 {[%clk 0:01:39]} 18. Bd5 {[%clk 0:01:24]}  Qa6 {[%clk 0:01:16]} 19. Qb3 {[%clk 0:01:10]}  Rc8 {[%clk 0:01:13]} 20. Rc1 {[%clk 0:00:53]}  Nxd4 {[%clk 0:00:53]} 21. Rxc8 {[%clk 0:00:52]}  Qxc8 {[%clk 0:00:37]} 22. Qc4 {[%clk 0:00:41]}  Qxc4 {[%clk 0:00:30]} 23. Bxc4 {[%clk 0:00:40]}  Nxb5 {[%clk 0:00:31]} 24. Bxb5 {[%clk 0:00:38]}  Be6 {[%clk 0:00:31]} 25. a4 {[%clk 0:00:37]}  Bb4 {[%clk 0:00:31]} 26. Nd4 {[%clk 0:00:37]}  Bd5 {[%clk 0:00:31]} 27. f3 {[%clk 0:00:31]}  Bc5 {[%clk 0:00:30]} 28. Kf2 {[%clk 0:00:30]}  Kg7 {[%clk 0:00:31]} 29. Ke2 {[%clk 0:00:30]}  Bb7 {[%clk 0:00:28]} 30. Kd3 {[%clk 0:00:26]}  Kf6 {[%clk 0:00:27]} 31. e4 {[%clk 0:00:21]}  Ke5 {[%clk 0:00:23]} 32. g3 {[%clk 0:00:20]}  Bxe4+ {[%clk 0:00:20]} 33. fxe4 {[%clk 0:00:19]}  Bxd4 {[%clk 0:00:20]} 34. Bc4 {[%clk 0:00:18]}  Bc5 {[%clk 0:00:21]} 35. Bg8 {[%clk 0:00:18]}  h6 {[%clk 0:00:21]} 36. Bh7 {[%clk 0:00:13]}  g5 {[%clk 0:00:22]} 37. Kc4 {[%clk 0:00:13]}  Be3 {[%clk 0:00:21]} 38. Kb5 {[%clk 0:00:14]}  g4 {[%clk 0:00:21]} 39. Bf5 {[%clk 0:00:13]}  h5 {[%clk 0:00:22]} 40. Bg6 {[%clk 0:00:14]}  Bg1 {[%clk 0:00:22]} 41. Bxh5 {[%clk 0:00:14]}  Bxh2 {[%clk 0:00:23]} 42. Bxg4 {[%clk 0:00:14]}  Bxg3 {[%clk 0:00:24]} 43. Bf5 {[%clk 0:00:15]}  Bf2 {[%clk 0:00:24]} 44. Kc6 {[%clk 0:00:15]}  Bg1 {[%clk 0:00:25]} 45. Kb7 {[%clk 0:00:16]}  Bf2 {[%clk 0:00:26]} 46. Kc6 {[%clk 0:00:16]}  Bg1 {[%clk 0:00:27]} 47. Kd7 {[%clk 0:00:17]}  Bf2 {[%clk 0:00:27]} 48. Ke7 {[%clk 0:00:17]}  Bg1 {[%clk 0:00:28]} 49. Kf7 {[%clk 0:00:18]}  Bf2 {[%clk 0:00:29]} 50. Kg6 {[%clk 0:00:19]}  Bg1 {[%clk 0:00:30]} 51. Kh5 {[%clk 0:00:20]}  Bf2 {[%clk 0:00:31]} 52. Kg4 {[%clk 0:00:21]}  Bd4 {[%clk 0:00:31]} 53. Kf3 {[%clk 0:00:22]}  Bc5 {[%clk 0:00:32]} 54. Ke2 {[%clk 0:00:22]}  Bb6 {[%clk 0:00:32]} 55. Kd3 {[%clk 0:00:23]}  Bc7 {[%clk 0:00:33]} 56. Kc4 {[%clk 0:00:24]}  Bd6 {[%clk 0:00:34]} 57. Kb5 {[%clk 0:00:25]}  Be7 {[%clk 0:00:34]} 58. Ka6 {[%clk 0:00:26]}  Bc5 {[%clk 0:00:35]} 59. Kb5 {[%clk 0:00:26]}  Bd4 {[%clk 0:00:36]} 60. a5 {[%clk 0:00:27]}  Be3 {[%clk 0:00:37]} 61. a6 {[%clk 0:00:27]}  Bf2 {[%clk 0:00:38]} 62. Kc4 {[%clk 0:00:28]}  Bg1 {[%clk 0:00:38]} 63. Kd3 {[%clk 0:00:29]}  Bf2 {[%clk 0:00:39]} 64. Ke2 {[%clk 0:00:30]}  Bb6 {[%clk 0:00:40]} 65. Kd3 {[%clk 0:00:30]}  Bc5 {[%clk 0:00:40]} 66. Kc4 {[%clk 0:00:31]}  Bg1 {[%clk 0:00:41]} 67. Kc3 {[%clk 0:00:32]}  Bf2 {[%clk 0:00:42]} 68. Kc2 {[%clk 0:00:33]}  Bd4 {[%clk 0:00:42]} 69. Kb3 {[%clk 0:00:34]}  Be3 {[%clk 0:00:43]} 70. Ka2 {[%clk 0:00:34]}  Bd4 {[%clk 0:00:44]} 71. Kb1 {[%clk 0:00:35]}  Be3 {[%clk 0:00:45]} 72. Kc2 {[%clk 0:00:36]}  Bd4 {[%clk 0:00:46]} 73. Kd1 {[%clk 0:00:37]}  Bc5 {[%clk 0:00:46]} 74. Ke2 {[%clk 0:00:38]}  Bb6 {[%clk 0:00:47]} 75. Kd3 {[%clk 0:00:39]}  Bc5 {[%clk 0:00:48]} 76. Kc4 {[%clk 0:00:40]}  Bd4 {[%clk 0:00:48]} 77. Kb5 {[%clk 0:00:40]}  Bf2 {[%clk 0:00:49]} 78. Kc6 {[%clk 0:00:41]}  Bd4 {[%clk 0:00:50]} 79. Kb7 {[%clk 0:00:42]}  Bf2 {[%clk 0:00:50]} 80. Kc8 {[%clk 0:00:43]}  Be3 {[%clk 0:00:51]} 81. Kd8 {[%clk 0:00:44]}  Bf2 {[%clk 0:00:52]} 82. Ke8 {[%clk 0:00:45]}  Be3 {[%clk 0:00:53]} 83. Kf8 {[%clk 0:00:45]}  Bd4 {[%clk 0:00:53]} 84. Kg7 {[%clk 0:00:46]}  Bc5 {[%clk 0:00:54]} 85. Kh6 {[%clk 0:00:47]}  Bb6 {[%clk 0:00:55]} 86. Kh5 {[%clk 0:00:48]}  Bc5 {[%clk 0:00:55]} 87. Kh4 {[%clk 0:00:49]}  Bd4 {[%clk 0:00:56]} 88. Kh3 {[%clk 0:00:50]}  Bc5 {[%clk 0:00:57]} 89. Kg2 {[%clk 0:00:51]}  Bb6 {[%clk 0:00:58]} 90. Kf1 {[%clk 0:00:52]}  Bc5 {[%clk 0:00:58]} 91. Ke2 {[%clk 0:00:53]}  Bd4 {[%clk 0:00:59]} 92. Kd3 {[%clk 0:00:54]}  Bf2 {[%clk 0:01:00]} 93. Ke2 {[%clk 0:00:54]}  Bg1 {[%clk 0:01:00]} 94. Bg6 {[%clk 0:00:55]}  Bc5 {[%clk 0:01:01]} 95. Kd3 {[%clk 0:00:55]}  Bb6 {[%clk 0:01:01]} 96. Kc4 {[%clk 0:00:56]}  Bf2 {[%clk 0:01:02]} 97. Kb5 {[%clk 0:00:57]}  Bg1 {[%clk 0:01:03]} 98. Kc6 {[%clk 0:00:58]}  Bf2 {[%clk 0:01:03]} 99. Kb7 {[%clk 0:00:59]}  Be3 {[%clk 0:01:04]} 100. Kc6 {[%clk 0:00:59]}  Bf2 {[%clk 0:01:04]} 101. Kb5 {[%clk 0:01:00]}  Bg1 {[%clk 0:01:05]} 102. Kc4 {[%clk 0:01:01]}  Kf6 {[%clk 0:01:06]} 103. Kd3 {[%clk 0:01:02]}  Kxg6 {[%clk 0:01:06]} 104. Kc4 {[%clk 0:01:00]}  Kf7 {[%clk 0:01:06]} 105. Kd5 {[%clk 0:01:01]}  Ke7 {[%clk 0:01:07]} 106. Ke5 {[%clk 0:01:01]}  Bf2 {[%clk 0:01:06]} 107. Kd5 {[%clk 0:01:02]}  Bg3 {[%clk 0:01:06]} 108. Kd4 {[%clk 0:01:02]}  Ke6 {[%clk 0:01:07]} 109. Kc5 {[%clk 0:01:03]}  Ke5 {[%clk 0:01:06]} 110. Kc6 {[%clk 0:01:03]}  Bf2 {[%clk 0:01:07]} 111. Kb7 {[%clk 0:01:04]}  Kxe4 {[%clk 0:01:07]} 112. Kc6 {[%clk 0:01:05]}  Kd4 {[%clk 0:01:08]} 113. Kb5 {[%clk 0:01:06]}  Kd5 {[%clk 0:01:08]} 114. Ka4 {[%clk 0:01:07]}  Kc6 {[%clk 0:01:09]} 115. Kb3 {[%clk 0:01:08]}  Kb6 {[%clk 0:01:09]} 116. Ka2 {[%clk 0:01:09]}  Kxa6 {[%clk 0:01:10]} 117. Kb1 {[%clk 0:01:10]}  Kb5 {[%clk 0:01:11]} 118. Kc2 {[%clk 0:01:10]}  a5 {[%clk 0:01:12]} 119. Kb1 {[%clk 0:01:11]}  a4 {[%clk 0:01:13]} 120. Ka2 {[%clk 0:01:12]}  Kb4 {[%clk 0:01:13]} 121. Kb1 {[%clk 0:01:13]}  Bd4 {[%clk 0:01:14]} 122. Ka2 {[%clk 0:01:14]}  Kc4 {[%clk 0:01:14]} 123. Kb1 {[%clk 0:01:15]}  Kb3 {[%clk 0:01:15]} 124. Kc1 {[%clk 0:01:15]}  a3 {[%clk 0:01:16]} 125. Kd2 {[%clk 0:01:16]}  a2 {[%clk 0:01:17]} 126. Kd3 {[%clk 0:01:17]}  a1=Q {[%clk 0:01:17]} 127. Ke4 {[%clk 0:01:17]}  Qc3 {[%clk 0:01:18]} 128. Kf5 {[%clk 0:01:17]}  Ba7 {[%clk 0:01:19]} 129. Ke6 {[%clk 0:01:18]}  Qc5 {[%clk 0:01:19]} 130. Kf7 {[%clk 0:01:19]}  Kb4 {[%clk 0:01:19]} 131. Kg6 {[%clk 0:01:20]}  Qd6+ {[%clk 0:01:20]} 132. Kh7 {[%clk 0:01:21]} 0-1


[Site "https://www.chess.com"]

[Event "Titled Tuesday Blitz June 6 Late 2023"]
[White "Martin Barcelo, Carles"]
[Black "Belov, Alexei"]
[WhiteFideId "24561444"]
[BlackFideId "4128206"]
[WhiteElo "2089"]
[BlackElo "2630"]
[Result "1-0"]
[Round "6"]
[TimeControl "180+2"]
[Date "2023.06.07"]
[WhiteClock "0:00:52"]
[BlackClock "0:01:00"]
[Board "92"]

1. e4 {[%clk 0:03:00]}  e6 {[%clk 0:02:57]} 2. d4 {[%clk 0:02:58]}  d5 {[%clk 0:02:58]} 3. Bd3 {[%clk 0:02:58]}  dxe4 {[%clk 0:02:58]} 4. Bxe4 {[%clk 0:02:59]}  Nf6 {[%clk 0:02:58]} 5. Bf3 {[%clk 0:03:00]}  c5 {[%clk 0:02:59]} 6. Ne2 {[%clk 0:03:00]}  Nc6 {[%clk 0:02:59]} 7. Be3 {[%clk 0:03:00]}  cxd4 {[%clk 0:02:59]} 8. Nxd4 {[%clk 0:03:01]}  Ne5 {[%clk 0:03:00]} 9. Nc3 {[%clk 0:03:02]}  a6 {[%clk 0:02:57]} 10. Qe2 {[%clk 0:03:00]}  Be7 {[%clk 0:02:56]} 11. O-O-O {[%clk 0:03:00]}  Qc7 {[%clk 0:02:55]} 12. Bf4 {[%clk 0:02:55]}  Nd3+ {[%clk 0:02:54]} 13. Qxd3 {[%clk 0:02:39]}  Qxf4+ {[%clk 0:02:55]} 14. Kb1 {[%clk 0:02:40]}  O-O {[%clk 0:02:53]} 15. Rhe1 {[%clk 0:02:34]}  Qc7 {[%clk 0:02:50]} 16. Qe3 {[%clk 0:02:32]}  Bb4 {[%clk 0:02:47]} 17. a3 {[%clk 0:02:25]}  Bxc3 {[%clk 0:02:46]} 18. Qxc3 {[%clk 0:02:26]}  Qxc3 {[%clk 0:02:45]} 19. bxc3 {[%clk 0:02:27]}  Bd7 {[%clk 0:02:45]} 20. Kb2 {[%clk 0:02:20]}  Rac8 {[%clk 0:02:34]} 21. Nb3 {[%clk 0:02:20]}  Bc6 {[%clk 0:02:31]} 22. Re3 {[%clk 0:02:05]}  Nd5 {[%clk 0:02:25]} 23. Bxd5 {[%clk 0:02:05]}  Bxd5 {[%clk 0:02:25]} 24. f3 {[%clk 0:02:05]}  g5 {[%clk 0:02:20]} 25. h4 {[%clk 0:02:03]}  gxh4 {[%clk 0:02:14]} 26. Rh1 {[%clk 0:02:02]}  Rc4 {[%clk 0:02:15]} 27. Nd2 {[%clk 0:01:56]}  Rf4 {[%clk 0:02:08]} 28. Ne4 {[%clk 0:01:45]}  Rd8 {[%clk 0:01:58]} 29. Nf2 {[%clk 0:01:34]}  Rd6 {[%clk 0:01:51]} 30. Nd3 {[%clk 0:01:26]}  Rb6+ {[%clk 0:01:49]} 31. Kc1 {[%clk 0:01:27]}  Ra4 {[%clk 0:01:48]} 32. Kd2 {[%clk 0:01:27]}  Rxa3 {[%clk 0:01:48]} 33. Rxh4 {[%clk 0:01:26]}  a5 {[%clk 0:01:41]} 34. Re5 {[%clk 0:01:22]}  Rc6 {[%clk 0:01:36]} 35. Rg5+ {[%clk 0:01:04]}  Kf8 {[%clk 0:01:35]} 36. Ne5 {[%clk 0:01:03]}  f6 {[%clk 0:01:25]} 37. Rf4 {[%clk 0:00:56]}  Raxc3 {[%clk 0:01:06]} 38. Rxf6+ {[%clk 0:00:54]}  Ke7 {[%clk 0:01:05]} 39. Rf7+ {[%clk 0:00:51]}  Kd6 {[%clk 0:01:05]} 40. Rd7+ {[%clk 0:00:51]}  Kc5 {[%clk 0:01:00]} 41. Kxc3 {[%clk 0:00:52]} 1-0


[Site "https://www.chess.com"]

[Event "Titled Tuesday Blitz June 6 Late 2023"]
[White "Schnaider, Ilan"]
[Black "MrAnnihilation"]
[WhiteFideId "169013"]
[WhiteElo "2224"]
[BlackElo "2405"]
[Result "1-0"]
[Round "6"]
[TimeControl "180+2"]
[Date "2023.06.07"]
[WhiteClock "0:01:02"]
[BlackClock "0:00:01"]
[Board "94"]

1. e4 {[%clk 0:03:00]}  d6 {[%clk 0:02:56]} 2. d4 {[%clk 0:03:00]}  Nf6 {[%clk 0:02:56]} 3. Nc3 {[%clk 0:03:00]}  e5 {[%clk 0:02:56]} 4. Nf3 {[%clk 0:02:58]}  Nbd7 {[%clk 0:02:56]} 5. Bc4 {[%clk 0:02:57]}  Be7 {[%clk 0:02:56]} 6. O-O {[%clk 0:02:57]}  O-O {[%clk 0:02:56]} 7. a4 {[%clk 0:02:52]}  c6 {[%clk 0:02:56]} 8. h3 {[%clk 0:02:49]}  b6 {[%clk 0:02:55]} 9. Re1 {[%clk 0:02:43]}  a6 {[%clk 0:02:55]} 10. Be3 {[%clk 0:02:33]}  Rb8 {[%clk 0:02:53]} 11. d5 {[%clk 0:02:20]}  b5 {[%clk 0:02:31]} 12. axb5 {[%clk 0:02:09]}  cxb5 {[%clk 0:02:31]} 13. Bd3 {[%clk 0:02:09]}  Qc7 {[%clk 0:02:24]} 14. Ne2 {[%clk 0:02:06]}  Nc5 {[%clk 0:02:05]} 15. Ng3 {[%clk 0:02:06]}  g6 {[%clk 0:02:02]} 16. Qd2 {[%clk 0:02:03]}  Re8 {[%clk 0:01:48]} 17. Nh2 {[%clk 0:01:51]}  h5 {[%clk 0:01:41]} 18. Bg5 {[%clk 0:01:46]}  Qd8 {[%clk 0:01:11]} 19. Bh6 {[%clk 0:01:30]}  h4 {[%clk 0:01:02]} 20. Ngf1 {[%clk 0:01:23]}  Nh7 {[%clk 0:00:23]} 21. Be3 {[%clk 0:01:16]}  Bg5 {[%clk 0:00:19]} 22. Nf3 {[%clk 0:01:13]}  Bxe3 {[%clk 0:00:19]} 23. Qxe3 {[%clk 0:01:13]}  Rb7 {[%clk 0:00:15]} 24. Qh6 {[%clk 0:01:13]}  Qf6 {[%clk 0:00:09]} 25. Nxh4 {[%clk 0:01:06]}  Rc7 {[%clk 0:00:07]} 26. Nf3 {[%clk 0:01:04]}  Bb7 {[%clk 0:00:02]} 27. Ne3 {[%clk 0:01:04]}  Rec8 {[%clk 0:00:01]} 28. Ng4 {[%clk 0:01:04]}  Qg7 {[%clk 0:00:02]} 29. Qh4 {[%clk 0:01:05]}  f6 {[%clk 0:00:01]} 30. Bf1 {[%clk 0:01:02]} 1-0


[Site "https://www.chess.com"]

[Event "Titled Tuesday Blitz June 6 Late 2023"]
[White "Gomez Ledo, Roberto Carlos"]
[Black "Ai, Evan"]
[WhiteFideId "3507076"]
[BlackFideId "2094770"]
[WhiteElo "2378"]
[BlackElo "1963"]
[Result "0-1"]
[Round "6"]
[TimeControl "180+2"]
[Date "2023.06.07"]
[WhiteClock "0:00:30"]
[BlackClock "0:01:48"]
[Board "95"]

1. d4 {[%clk 0:03:00]}  Nf6 {[%clk 0:02:59]} 2. Bf4 {[%clk 0:03:00]}  d5 {[%clk 0:02:59]} 3. e3 {[%clk 0:03:00]}  c5 {[%clk 0:02:56]} 4. c3 {[%clk 0:02:59]}  Nc6 {[%clk 0:02:56]} 5. Nd2 {[%clk 0:02:59]}  e6 {[%clk 0:02:57]} 6. Ngf3 {[%clk 0:02:59]}  Nh5 {[%clk 0:02:57]} 7. Be5 {[%clk 0:02:53]}  f6 {[%clk 0:02:55]} 8. Bg3 {[%clk 0:02:54]}  cxd4 {[%clk 0:02:55]} 9. cxd4 {[%clk 0:02:52]}  Bd6 {[%clk 0:02:49]} 10. Bxd6 {[%clk 0:02:51]}  Qxd6 {[%clk 0:02:50]} 11. Rc1 {[%clk 0:02:49]}  O-O {[%clk 0:02:49]} 12. Be2 {[%clk 0:02:46]}  e5 {[%clk 0:02:46]} 13. dxe5 {[%clk 0:02:35]}  fxe5 {[%clk 0:02:47]} 14. O-O {[%clk 0:02:35]}  Nf6 {[%clk 0:02:31]} 15. Nc4 {[%clk 0:02:17]}  Qe7 {[%clk 0:02:25]} 16. Na3 {[%clk 0:02:11]}  Bf5 {[%clk 0:02:11]} 17. Qb3 {[%clk 0:02:06]}  Kh8 {[%clk 0:02:08]} 18. Nb5 {[%clk 0:01:58]}  a6 {[%clk 0:02:06]} 19. Nc3 {[%clk 0:01:58]}  d4 {[%clk 0:02:06]} 20. Na4 {[%clk 0:01:35]}  d3 {[%clk 0:01:58]} 21. Bd1 {[%clk 0:01:20]}  e4 {[%clk 0:01:55]} 22. Nd4 {[%clk 0:01:16]}  Nxd4 {[%clk 0:01:54]} 23. exd4 {[%clk 0:01:16]}  e3 {[%clk 0:01:54]} 24. Rc5 {[%clk 0:00:36]}  e2 {[%clk 0:01:51]} 25. Rxf5 {[%clk 0:00:29]}  exf1=Q+ {[%clk 0:01:48]} 26. Kxf1 {[%clk 0:00:30]}  Ne4 {[%clk 0:01:48]} 0-1


[Site "https://www.chess.com"]

[Event "Titled Tuesday Blitz June 6 Late 2023"]
[White "Smiechu"]
[Black "Perske, Thore"]
[BlackFideId "12902195"]
[WhiteElo "2385"]
[BlackElo "2336"]
[Result "1-0"]
[Round "6"]
[TimeControl "180+2"]
[Date "2023.06.07"]
[WhiteClock "0:01:31"]
[BlackClock "0:01:22"]
[Board "98"]

1. e4 {[%clk 0:03:00]}  e6 {[%clk 0:02:58]} 2. d4 {[%clk 0:02:53]}  d5 {[%clk 0:02:58]} 3. Bd3 {[%clk 0:02:47]}  dxe4 {[%clk 0:02:58]} 4. Bxe4 {[%clk 0:02:47]}  Nf6 {[%clk 0:02:59]} 5. Bf3 {[%clk 0:02:47]}  c5 {[%clk 0:03:00]} 6. Ne2 {[%clk 0:02:47]}  Be7 {[%clk 0:03:01]} 7. O-O {[%clk 0:02:45]}  O-O {[%clk 0:03:01]} 8. g3 {[%clk 0:02:45]}  cxd4 {[%clk 0:03:00]} 9. Qxd4 {[%clk 0:02:44]}  Qxd4 {[%clk 0:02:56]} 10. Nxd4 {[%clk 0:02:44]}  e5 {[%clk 0:02:49]} 11. Nb5 {[%clk 0:02:41]}  e4 {[%clk 0:02:41]} 12. Bg2 {[%clk 0:02:41]}  Nc6 {[%clk 0:02:30]} 13. N1c3 {[%clk 0:02:32]}  Bf5 {[%clk 0:02:30]} 14. Bg5 {[%clk 0:02:26]}  a6 {[%clk 0:02:19]} 15. Nc7 {[%clk 0:02:13]}  Rac8 {[%clk 0:02:17]} 16. Bxf6 {[%clk 0:02:12]}  Bxf6 {[%clk 0:02:18]} 17. N7d5 {[%clk 0:02:13]}  Bxc3 {[%clk 0:02:14]} 18. Nxc3 {[%clk 0:02:12]}  Rfe8 {[%clk 0:02:01]} 19. Rfe1 {[%clk 0:02:06]}  Nd4 {[%clk 0:02:01]} 20. Bxe4 {[%clk 0:02:00]}  Rxc3 {[%clk 0:01:31]} 21. Bxf5 {[%clk 0:01:49]}  Nf3+ {[%clk 0:01:28]} 22. Kf1 {[%clk 0:01:46]}  Rxe1+ {[%clk 0:01:23]} 23. Rxe1 {[%clk 0:01:44]}  Nxe1 {[%clk 0:01:24]} 24. bxc3 {[%clk 0:01:43]}  Nf3 {[%clk 0:01:24]} 25. Bc8 {[%clk 0:01:32]}  Nxh2+ {[%clk 0:01:22]} 26. Kg2 {[%clk 0:01:31]} 1-0


[Site "https://www.chess.com"]

[Event "Titled Tuesday Blitz June 6 Late 2023"]
[White "sebastianmarinp"]
[Black "Filgueira, Hernan"]
[BlackFideId "101770"]
[WhiteElo "2370"]
[BlackElo "2363"]
[Result "0-1"]
[Round "6"]
[TimeControl "180+2"]
[Date "2023.06.07"]
[WhiteClock "0:00:01"]
[BlackClock "0:01:10"]
[Board "101"]

1. e4 {[%clk 0:03:00]}  d6 {[%clk 0:02:44]} 2. d4 {[%clk 0:03:00]}  Nf6 {[%clk 0:02:43]} 3. Nc3 {[%clk 0:02:59]}  e5 {[%clk 0:02:44]} 4. Nge2 {[%clk 0:02:58]}  Be7 {[%clk 0:02:43]} 5. h3 {[%clk 0:02:56]}  c6 {[%clk 0:02:43]} 6. a4 {[%clk 0:02:55]}  a5 {[%clk 0:02:41]} 7. g4 {[%clk 0:02:54]}  O-O {[%clk 0:02:38]} 8. Bg2 {[%clk 0:02:54]}  Na6 {[%clk 0:02:35]} 9. O-O {[%clk 0:02:53]}  Nb4 {[%clk 0:02:35]} 10. Be3 {[%clk 0:02:44]}  exd4 {[%clk 0:02:31]} 11. Nxd4 {[%clk 0:02:39]}  d5 {[%clk 0:02:31]} 12. e5 {[%clk 0:02:32]}  Nd7 {[%clk 0:02:30]} 13. f4 {[%clk 0:02:24]}  c5 {[%clk 0:02:25]} 14. Nxd5 {[%clk 0:00:41]}  cxd4 {[%clk 0:02:22]} 15. Bxd4 {[%clk 0:00:42]}  Nxd5 {[%clk 0:02:20]} 16. Bxd5 {[%clk 0:00:42]}  Nc5 {[%clk 0:02:18]} 17. c4 {[%clk 0:00:39]}  Be6 {[%clk 0:02:15]} 18. Qf3 {[%clk 0:00:35]}  Bd7 {[%clk 0:01:52]} 19. b3 {[%clk 0:00:27]}  Qb6 {[%clk 0:01:48]} 20. Rab1 {[%clk 0:00:27]}  Kh8 {[%clk 0:01:33]} 21. Kh2 {[%clk 0:00:27]}  f5 {[%clk 0:01:32]} 22. g5 {[%clk 0:00:11]}  Qc7 {[%clk 0:01:23]} 23. h4 {[%clk 0:00:10]}  Ne6 {[%clk 0:01:23]} 24. Be3 {[%clk 0:00:08]}  Rab8 {[%clk 0:01:19]} 25. Kg3 {[%clk 0:00:07]}  b6 {[%clk 0:01:16]} 26. Rh1 {[%clk 0:00:06]}  Nc5 {[%clk 0:01:15]} 27. h5 {[%clk 0:00:06]}  Ne4+ {[%clk 0:01:15]} 28. Bxe4 {[%clk 0:00:04]}  fxe4 {[%clk 0:01:15]} 29. Qxe4 {[%clk 0:00:04]}  Bf5 {[%clk 0:01:15]} 30. Qf3 {[%clk 0:00:01]}  Bxb1 {[%clk 0:01:14]} 31. Rxb1 {[%clk 0:00:02]}  Qb7 {[%clk 0:01:12]} 32. Qxb7 {[%clk 0:00:01]}  Rxb7 {[%clk 0:01:12]} 33. Kg4 {[%clk 0:00:01]}  Rd7 {[%clk 0:01:11]} 34. Bxb6 {[%clk 0:00:01]}  Bb4 {[%clk 0:01:10]} 0-1


[Site "https://www.chess.com"]

[Event "Titled Tuesday Blitz June 6 Late 2023"]
[White "Baches Garcia, Guillermo"]
[Black "Olsson, William"]
[WhiteFideId "2209764"]
[BlackFideId "1741721"]
[WhiteElo "2483"]
[BlackElo "2197"]
[Result "1-0"]
[Round "6"]
[TimeControl "180+2"]
[Date "2023.06.07"]
[WhiteClock "0:00:26"]
[BlackClock "0:00:15"]
[Board "107"]

1. e4 {[%clk 0:03:00]}  c5 {[%clk 0:02:57]} 2. Nf3 {[%clk 0:03:01]}  d6 {[%clk 0:02:58]} 3. d4 {[%clk 0:03:01]}  cxd4 {[%clk 0:02:58]} 4. Nxd4 {[%clk 0:03:01]}  Nf6 {[%clk 0:02:59]} 5. Nc3 {[%clk 0:03:01]}  g6 {[%clk 0:03:00]} 6. Be3 {[%clk 0:03:01]}  Bg7 {[%clk 0:03:00]} 7. f3 {[%clk 0:03:01]}  O-O {[%clk 0:03:00]} 8. Qd2 {[%clk 0:03:01]}  Nc6 {[%clk 0:03:00]} 9. O-O-O {[%clk 0:03:00]}  d5 {[%clk 0:02:59]} 10. Nxc6 {[%clk 0:03:00]}  bxc6 {[%clk 0:02:59]} 11. Bh6 {[%clk 0:03:00]}  Be6 {[%clk 0:02:53]} 12. Bxg7 {[%clk 0:02:56]}  Kxg7 {[%clk 0:02:53]} 13. exd5 {[%clk 0:02:56]}  cxd5 {[%clk 0:02:50]} 14. g4 {[%clk 0:02:56]}  Rb8 {[%clk 0:02:29]} 15. g5 {[%clk 0:02:44]}  Nh5 {[%clk 0:02:28]} 16. Nxd5 {[%clk 0:02:32]}  Qd6 {[%clk 0:02:23]} 17. Qc3+ {[%clk 0:01:59]}  f6 {[%clk 0:02:09]} 18. gxf6+ {[%clk 0:01:55]}  Nxf6 {[%clk 0:02:09]} 19. Nxf6 {[%clk 0:01:49]}  Qf4+ {[%clk 0:02:09]} 20. Kb1 {[%clk 0:01:47]}  Rxf6 {[%clk 0:01:58]} 21. b3 {[%clk 0:01:35]}  Qxf3 {[%clk 0:01:45]} 22. Bd3 {[%clk 0:01:32]}  Rc8 {[%clk 0:01:30]} 23. Qe5 {[%clk 0:01:25]}  Qd5 {[%clk 0:01:14]} 24. Qe3 {[%clk 0:01:17]}  Qc5 {[%clk 0:01:13]} 25. Qe2 {[%clk 0:01:07]}  Bf5 {[%clk 0:00:59]} 26. Rhe1 {[%clk 0:01:00]}  Rc7 {[%clk 0:00:57]} 27. Bc4 {[%clk 0:00:52]}  a5 {[%clk 0:00:52]} 28. Rd8 {[%clk 0:00:49]}  h6 {[%clk 0:00:44]} 29. Qd2 {[%clk 0:00:41]}  Kh7 {[%clk 0:00:19]} 30. Rg8 {[%clk 0:00:30]}  Qd6 {[%clk 0:00:17]} 31. Rh8+ {[%clk 0:00:26]}  Kxh8 {[%clk 0:00:15]} 32. Qxh6# {[%clk 0:00:26]} 1-0


[Site "https://www.chess.com"]

[Event "Titled Tuesday Blitz June 6 Late 2023"]
[White "Ismayil, Malak"]
[Black "Cardozo Munar, Carlos Eduardo"]
[WhiteFideId "13412604"]
[BlackFideId "4409477"]
[WhiteElo "1868"]
[BlackElo "2067"]
[Result "1-0"]
[Round "6"]
[TimeControl "180+2"]
[Date "2023.06.07"]
[WhiteClock "0:01:57"]
[BlackClock "0:01:30"]
[Board "108"]

1. e4 {[%clk 0:03:00]}  e6 {[%clk 0:02:59]} 2. d4 {[%clk 0:03:00]}  d5 {[%clk 0:03:00]} 3. Nd2 {[%clk 0:02:59]}  c5 {[%clk 0:03:01]} 4. exd5 {[%clk 0:02:59]}  Qxd5 {[%clk 0:03:01]} 5. dxc5 {[%clk 0:03:00]}  Bxc5 {[%clk 0:03:01]} 6. Ngf3 {[%clk 0:03:00]}  Nc6 {[%clk 0:03:01]} 7. Bc4 {[%clk 0:03:01]}  Qd7 {[%clk 0:03:01]} 8. O-O {[%clk 0:03:02]}  Nf6 {[%clk 0:03:01]} 9. Qe2 {[%clk 0:03:03]}  O-O {[%clk 0:03:01]} 10. Nb3 {[%clk 0:03:03]}  Bd6 {[%clk 0:02:59]} 11. Bg5 {[%clk 0:03:02]}  h6 {[%clk 0:02:58]} 12. Bxf6 {[%clk 0:03:02]}  gxf6 {[%clk 0:02:59]} 13. Rad1 {[%clk 0:03:02]}  Qc7 {[%clk 0:02:58]} 14. g3 {[%clk 0:02:56]}  Kh7 {[%clk 0:02:58]} 15. Qd3+ {[%clk 0:02:56]}  f5 {[%clk 0:02:53]} 16. Qxd6 {[%clk 0:02:55]}  Qxd6 {[%clk 0:02:53]} 17. Rxd6 {[%clk 0:02:56]}  a6 {[%clk 0:02:52]} 18. Rfd1 {[%clk 0:02:54]}  Rg8 {[%clk 0:02:48]} 19. Nc5 {[%clk 0:02:51]}  Na5 {[%clk 0:02:41]} 20. Be2 {[%clk 0:02:37]}  Nc6 {[%clk 0:02:34]} 21. Nd7 {[%clk 0:02:35]}  Rg7 {[%clk 0:02:16]} 22. Nde5 {[%clk 0:02:20]}  Ne7 {[%clk 0:02:01]} 23. Rd8 {[%clk 0:02:16]}  b5 {[%clk 0:02:01]} 24. Nd7 {[%clk 0:02:07]}  Rg4 {[%clk 0:01:31]} 25. Nf6+ {[%clk 0:01:59]}  Kg6 {[%clk 0:01:31]} 26. Nxg4 {[%clk 0:02:00]}  fxg4 {[%clk 0:01:31]} 27. Ne5+ {[%clk 0:02:00]}  Kf5 {[%clk 0:01:31]} 28. Nxf7 {[%clk 0:01:59]}  Bb7 {[%clk 0:01:30]} 29. Nd6+ {[%clk 0:01:57]} 1-0


[Site "https://www.chess.com"]